[Event "Early-Titled-Tuesday-Blitz-May-14-2024"]
[Site "Chess.com"]
[Date "2024.05.14"]
[Round "2"]
[White "fandebobbyfischer"]
[Black "Flaccidmoves"]
[Result "0-1"]
[WhiteElo "2726"]
[BlackElo "2432"]
[TimeControl "180+1"]
[EndTime "8:19:07 PDT"]
[Termination "Flaccidmoves won on time"]

1. e4 {[%clk 0:03:00.9]} 1... e5 {[%clk 0:02:58.9]} 2. Nf3 {[%clk 0:03:00.5]}
2... Nc6 {[%clk 0:02:59.3]} 3. Bc4 {[%clk 0:03:00.2]} 3... Nf6 {[%clk 0:02:59]}
4. Ng5 {[%clk 0:02:59.9]} 4... d5 {[%clk 0:02:58.7]} 5. exd5 {[%clk 0:03:00.8]}
5... Na5 {[%clk 0:02:58.5]} 6. Bb5+ {[%clk 0:03:01.2]} 6... c6 {[%clk
0:02:58.8]} 7. dxc6 {[%clk 0:03:02.1]} 7... bxc6 {[%clk 0:02:59.2]} 8. Bd3
{[%clk 0:03:03]} 8... h6 {[%clk 0:02:47.8]} 9. Ne4 {[%clk 0:03:02.5]} 9... Nxe4
{[%clk 0:02:48.4]} 10. Bxe4 {[%clk 0:03:02.4]} 10... g6 {[%clk 0:02:35.5]} 11.
d3 {[%clk 0:03:00.2]} 11... f5 {[%clk 0:02:29.7]} 12. Bf3 {[%clk 0:02:58.5]}
12... Be6 {[%clk 0:02:19.3]} 13. O-O {[%clk 0:02:57.7]} 13... Rb8 {[%clk
0:02:14]} 14. Nc3 {[%clk 0:02:54.4]} 14... Bd6 {[%clk 0:02:07.3]} 15. Re1 {[%clk
0:02:53.9]} 15... Kf7 {[%clk 0:02:02.8]} 16. a3 {[%clk 0:02:45.1]} 16... c5
{[%clk 0:01:58.5]} 17. Be3 {[%clk 0:02:01.4]} 17... Qd7 {[%clk 0:01:34.8]} 18.
Rb1 {[%clk 0:01:19.7]} 18... Nc6 {[%clk 0:01:29.6]} 19. Bd5 {[%clk 0:00:29.5]}
19... Bxd5 {[%clk 0:01:17.9]} 20. Nxd5 {[%clk 0:00:30.4]} 20... f4 {[%clk
0:01:15.7]} 21. Bd2 {[%clk 0:00:29.4]} 21... h5 {[%clk 0:01:00.1]} 22. Nc3
{[%clk 0:00:29]} 22... g5 {[%clk 0:00:49.3]} 23. Ne4 {[%clk 0:00:28.3]} 23...
Be7 {[%clk 0:00:49.8]} 24. Bc3 {[%clk 0:00:27.3]} 24... g4 {[%clk 0:00:42]} 25.
Nd2 {[%clk 0:00:26.8]} 25... Bf6 {[%clk 0:00:37.7]} 26. Ne4 {[%clk 0:00:27.2]}
26... Be7 {[%clk 0:00:36.9]} 27. Qd2 {[%clk 0:00:20.1]} 27... Rhg8 {[%clk
0:00:35.6]} 28. Bxe5 {[%clk 0:00:19.7]} 28... Qf5 {[%clk 0:00:17.5]} 29. Bxb8
{[%clk 0:00:19.2]} 29... Rxb8 {[%clk 0:00:18.4]} 30. c3 {[%clk 0:00:16]} 30...
h4 {[%clk 0:00:18.1]} 31. b4 {[%clk 0:00:15.8]} 31... cxb4 {[%clk 0:00:16.5]}
32. cxb4 {[%clk 0:00:15.5]} 32... h3 {[%clk 0:00:17]} 33. Qc3 {[%clk 0:00:13.9]}
33... Ne5 {[%clk 0:00:15.6]} 34. Ng5+ {[%clk 0:00:13.8]} 34... Bxg5 {[%clk
0:00:13.4]} 35. Qxe5 {[%clk 0:00:13.9]} 35... Qxe5 {[%clk 0:00:12]} 36. Rxe5
{[%clk 0:00:14.8]} 36... Kg6 {[%clk 0:00:06]} 37. Re6+ {[%clk 0:00:14.4]} 37...
Kf7 {[%clk 0:00:03.2]} 38. Ra6 {[%clk 0:00:15.3]} 38... hxg2 {[%clk 0:00:02.8]}
39. Kxg2 {[%clk 0:00:14.8]} 39... Rd8 {[%clk 0:00:02.1]} 40. Rxa7+ {[%clk
0:00:15.1]} 40... Kg6 {[%clk 0:00:02.8]} 41. Ra6+ {[%clk 0:00:14.6]} 41... Kh5
{[%clk 0:00:03.1]} 42. Rd1 {[%clk 0:00:14.7]} 42... f3+ {[%clk 0:00:02.8]} 43.
Kf1 {[%clk 0:00:14]} 43... Re8 {[%clk 0:00:03.1]} 44. d4 {[%clk 0:00:11.1]}
44... Re2 {[%clk 0:00:03.1]} 45. d5 {[%clk 0:00:11.5]} 45... Bh4 {[%clk
0:00:03.6]} 46. d6 {[%clk 0:00:08.9]} 46... Rxf2+ {[%clk 0:00:03.9]} 47. Kg1
{[%clk 0:00:09.5]} 47... Rg2+ {[%clk 0:00:04.5]} 48. Kh1 {[%clk 0:00:10.2]}
48... Rf2 {[%clk 0:00:04.7]} 49. Ra5+ {[%clk 0:00:10.2]} 49... Kg6 {[%clk
0:00:03.4]} 50. d7 {[%clk 0:00:10.4]} 50... Re2 {[%clk 0:00:03]} 51. Ra6+ {[%clk
0:00:05.9]} 51... Kf7 {[%clk 0:00:03]} 52. Rad6 {[%clk 0:00:06.3]} 52... f2
{[%clk 0:00:02.7]} 53. Kg2 {[%clk 0:00:05.2]} 53... Re1 {[%clk 0:00:02.5]} 0-1

[Event "Early-Titled-Tuesday-Blitz-May-14-2024"]
[Site "Chess.com"]
[Date "2024.05.14"]
[Round "2"]
[White "pfalcon1949"]
[Black "Cherepov_Alexej"]
[Result "1/2-1/2"]
[WhiteElo "1910"]
[BlackElo "2431"]
[TimeControl "180+1"]
[EndTime "8:19:10 PDT"]
[Termination "Game drawn by repetition"]

1. e4 {[%clk 0:03:00.9]} 1... Nf6 {[%clk 0:02:59.3]} 2. e5 {[%clk 0:02:59.9]}
2... Nd5 {[%clk 0:02:59.3]} 3. Nc3 {[%clk 0:03:00.6]} 3... Nxc3 {[%clk
0:02:58.8]} 4. dxc3 {[%clk 0:03:01.5]} 4... d6 {[%clk 0:02:59.1]} 5. Bf4 {[%clk
0:03:00.5]} 5... g6 {[%clk 0:02:51.6]} 6. Qd2 {[%clk 0:02:58]} 6... Bg7 {[%clk
0:02:35.2]} 7. O-O-O {[%clk 0:02:56.5]} 7... Nc6 {[%clk 0:02:29.9]} 8. Nf3
{[%clk 0:02:51]} 8... Bg4 {[%clk 0:02:28.2]} 9. exd6 {[%clk 0:02:44.7]} 9...
cxd6 {[%clk 0:02:20.3]} 10. Be2 {[%clk 0:02:45]} 10... Qa5 {[%clk 0:02:07]} 11.
Kb1 {[%clk 0:02:42.7]} 11... Be6 {[%clk 0:02:06.4]} 12. a3 {[%clk 0:02:36.1]}
12... h6 {[%clk 0:02:01.2]} 13. h4 {[%clk 0:02:33.7]} 13... O-O-O {[%clk
0:01:58]} 14. Rhe1 {[%clk 0:02:11.2]} 14... Qa4 {[%clk 0:01:42.3]} 15. Bg3
{[%clk 0:02:00.6]} 15... Na5 {[%clk 0:01:25.1]} 16. Nd4 {[%clk 0:01:35.4]} 16...
Bd5 {[%clk 0:01:18.8]} 17. Bb5 {[%clk 0:01:28.9]} 17... Nc4 {[%clk 0:01:12.4]}
18. Bxa4 {[%clk 0:01:26.8]} 18... Nxd2+ {[%clk 0:01:12.4]} 19. Rxd2 {[%clk
0:01:27.5]} 19... Bxg2 {[%clk 0:01:12.6]} 20. Bb3 {[%clk 0:01:25.2]} 20... e5
{[%clk 0:01:07.6]} 21. Nb5 {[%clk 0:01:22.2]} 21... f5 {[%clk 0:00:59.1]} 22.
Nxa7+ {[%clk 0:01:19.3]} 22... Kb8 {[%clk 0:00:57.7]} 23. Nb5 {[%clk 0:01:17.1]}
23... f4 {[%clk 0:00:56.7]} 24. Bh2 {[%clk 0:01:17.1]} 24... d5 {[%clk
0:00:54.4]} 25. Rg1 {[%clk 0:01:10.8]} 25... f3 {[%clk 0:00:53.7]} 26. Re1
{[%clk 0:01:10.5]} 26... Rhe8 {[%clk 0:00:53.4]} 27. a4 {[%clk 0:01:05.2]} 27...
Bf6 {[%clk 0:00:49.5]} 28. Red1 {[%clk 0:00:59.5]} 28... Bxh4 {[%clk 0:00:46.8]}
29. Bxd5 {[%clk 0:00:56.7]} 29... Bg5 {[%clk 0:00:40.4]} 30. Rd4 {[%clk
0:00:49.4]} 30... Kc8 {[%clk 0:00:33]} 31. Re4 {[%clk 0:00:46]} 31... Bf6 {[%clk
0:00:18.1]} 32. Na7+ {[%clk 0:00:40.1]} 32... Kb8 {[%clk 0:00:17.6]} 33. Nb5
{[%clk 0:00:40.6]} 33... Kc8 {[%clk 0:00:17.9]} 34. c4 {[%clk 0:00:38]} 34... g5
{[%clk 0:00:17.2]} 35. Rde1 {[%clk 0:00:37.2]} 35... h5 {[%clk 0:00:15.7]} 36.
Bxe5 {[%clk 0:00:37.6]} 36... Bxe5 {[%clk 0:00:13]} 37. Rxe5 {[%clk 0:00:37.1]}
37... Rxe5 {[%clk 0:00:11.9]} 38. Rxe5 {[%clk 0:00:36.8]} 38... g4 {[%clk
0:00:12.5]} 39. Rxh5 {[%clk 0:00:34.8]} 39... g3 {[%clk 0:00:12.9]} 40. fxg3
{[%clk 0:00:33.1]} 40... f2 {[%clk 0:00:13.1]} 41. Bxg2 {[%clk 0:00:31.9]} 41...
Rd1+ {[%clk 0:00:13.4]} 42. Ka2 {[%clk 0:00:32]} 42... Rg1 {[%clk 0:00:14.3]}
43. Bh3+ {[%clk 0:00:30.7]} 43... Kd8 {[%clk 0:00:14.2]} 44. Rf5 {[%clk
0:00:30.2]} 44... Rxg3 {[%clk 0:00:13.3]} 45. Rxf2 {[%clk 0:00:27.1]} 45... Rxh3
{[%clk 0:00:13.2]} 46. b3 {[%clk 0:00:27.8]} 46... Kd7 {[%clk 0:00:12.3]} 47.
Ka3 {[%clk 0:00:28.7]} 47... Kc6 {[%clk 0:00:12.4]} 48. Kb4 {[%clk 0:00:29.6]}
48... Kb6 {[%clk 0:00:12.4]} 49. a5+ {[%clk 0:00:30.5]} 49... Kc6 {[%clk
0:00:11.6]} 50. c3 {[%clk 0:00:31.1]} 50... Rh5 {[%clk 0:00:10.3]} 51. Rf6+
{[%clk 0:00:31.3]} 51... Kd7 {[%clk 0:00:10.5]} 52. c5 {[%clk 0:00:31.1]} 52...
Kc8 {[%clk 0:00:09.5]} 53. c4 {[%clk 0:00:30.5]} 53... Rh3 {[%clk 0:00:08.5]}
54. Rf7 {[%clk 0:00:30.2]} 54... Re3 {[%clk 0:00:06.5]} 55. Nd6+ {[%clk
0:00:30]} 55... Kb8 {[%clk 0:00:04.6]} 56. Rxb7+ {[%clk 0:00:29.3]} 56... Ka8
{[%clk 0:00:04.8]} 57. Rf7 {[%clk 0:00:29]} 57... Kb8 {[%clk 0:00:04.3]} 58. a6
{[%clk 0:00:29.4]} 58... Ka8 {[%clk 0:00:04.2]} 59. Nc8 {[%clk 0:00:29.8]} 59...
Kb8 {[%clk 0:00:03.3]} 60. Nb6 {[%clk 0:00:30.4]} 60... Rxb3+ {[%clk 0:00:02.3]}
61. Ka4 {[%clk 0:00:27.7]} 61... Rb4+ {[%clk 0:00:02.4]} 62. Ka5 {[%clk
0:00:27.3]} 62... Rb5+ {[%clk 0:00:02.7]} 63. Ka4 {[%clk 0:00:25.6]} 63... Rb4+
{[%clk 0:00:03.1]} 64. Ka3 {[%clk 0:00:26.2]} 64... Rb3+ {[%clk 0:00:03.5]} 65.
Ka2 {[%clk 0:00:26.6]} 65... Rb2+ {[%clk 0:00:04.1]} 66. Ka1 {[%clk 0:00:24.7]}
66... Rb1+ {[%clk 0:00:04.4]} 67. Ka2 {[%clk 0:00:21.4]} 67... Rb2+ {[%clk
0:00:05]} 68. Ka3 {[%clk 0:00:21.8]} 68... Rb3+ {[%clk 0:00:05.3]} 69. Ka4
{[%clk 0:00:22.1]} 69... Rb4+ {[%clk 0:00:05.7]} 1/2-1/2

[Event "Early-Titled-Tuesday-Blitz-May-14-2024"]
[Site "Chess.com"]
[Date "2024.05.14"]
[Round "2"]
[White "profedechess93"]
[Black "NewYearGirl"]
[Result "1-0"]
[WhiteElo "2646"]
[BlackElo "2380"]
[TimeControl "180+1"]
[EndTime "8:19:14 PDT"]
[Termination "profedechess93 won by resignation"]

1. e4 {[%clk 0:03:00.9]} 1... c5 {[%clk 0:02:59.8]} 2. Nf3 {[%clk 0:02:59.7]}
2... d6 {[%clk 0:03:00.1]} 3. Bb5+ {[%clk 0:02:58.9]} 3... Bd7 {[%clk
0:03:00.1]} 4. Bxd7+ {[%clk 0:02:57.7]} 4... Qxd7 {[%clk 0:03:01]} 5. O-O {[%clk
0:02:55.4]} 5... Nc6 {[%clk 0:02:59.6]} 6. Re1 {[%clk 0:02:53.9]} 6... e6 {[%clk
0:02:59.6]} 7. c3 {[%clk 0:02:50.7]} 7... Nf6 {[%clk 0:02:59.5]} 8. d4 {[%clk
0:02:49.3]} 8... cxd4 {[%clk 0:02:59.5]} 9. cxd4 {[%clk 0:02:50.2]} 9... d5
{[%clk 0:02:59.9]} 10. e5 {[%clk 0:02:50.8]} 10... Ng8 {[%clk 0:03:00.6]} 11.
Nc3 {[%clk 0:02:42.2]} 11... h5 {[%clk 0:03:00.5]} 12. Bg5 {[%clk 0:02:33.8]}
12... Nh6 {[%clk 0:02:57.6]} 13. Qd3 {[%clk 0:02:30.9]} 13... Nf5 {[%clk
0:02:56]} 14. h3 {[%clk 0:02:31.4]} 14... Qc7 {[%clk 0:02:49]} 15. Nxd5 {[%clk
0:02:30.2]} 15... Qd7 {[%clk 0:02:39]} 16. Nc3 {[%clk 0:02:23.4]} 16... Ncxd4
{[%clk 0:02:28.2]} 17. Nxd4 {[%clk 0:01:36]} 17... Qxd4 {[%clk 0:02:28.6]} 18.
Qf3 {[%clk 0:01:36.4]} 18... Qb6 {[%clk 0:02:20]} 19. Rad1 {[%clk 0:01:13.6]}
19... Bb4 {[%clk 0:01:56]} 20. g4 {[%clk 0:01:08]} 20... hxg4 {[%clk 0:01:50.4]}
21. hxg4 {[%clk 0:01:08.9]} 21... Nh4 {[%clk 0:01:38.2]} 22. Qe4 {[%clk
0:00:58]} 22... Bc5 {[%clk 0:01:28.6]} 23. Re2 {[%clk 0:00:41.5]} 23... Qc6
{[%clk 0:01:12.5]} 24. Qxc6+ {[%clk 0:00:38.4]} 24... bxc6 {[%clk 0:01:13]} 25.
Ne4 {[%clk 0:00:38.9]} 25... Nf3+ {[%clk 0:00:53.6]} 26. Kg2 {[%clk 0:00:38.1]}
26... Nxg5 {[%clk 0:00:54.5]} 27. Nxc5 {[%clk 0:00:36.8]} 27... Rh4 {[%clk
0:00:41.6]} 28. Rd4 {[%clk 0:00:30.4]} 28... Rd8 {[%clk 0:00:34.8]} 29. Red2
{[%clk 0:00:28.8]} 29... Rxd4 {[%clk 0:00:30.2]} 30. Rxd4 {[%clk 0:00:29.7]}
30... f5 {[%clk 0:00:30.3]} 31. exf6 {[%clk 0:00:26.8]} 31... gxf6 {[%clk
0:00:29.3]} 32. f3 {[%clk 0:00:25.6]} 32... f5 {[%clk 0:00:29]} 33. Ra4 {[%clk
0:00:23.7]} 33... fxg4 {[%clk 0:00:28.7]} 34. fxg4 {[%clk 0:00:24.3]} 34... a5
{[%clk 0:00:28]} 35. Kg3 {[%clk 0:00:22.8]} 35... Rh3+ {[%clk 0:00:27.5]} 36.
Kf4 {[%clk 0:00:23.4]} 36... Nf7 {[%clk 0:00:28]} 37. Nxe6 {[%clk 0:00:21.9]}
37... Rh2 {[%clk 0:00:25.6]} 38. b3 {[%clk 0:00:22]} 38... Rf2+ {[%clk
0:00:22.9]} 39. Kg3 {[%clk 0:00:20.8]} 39... Re2 {[%clk 0:00:21]} 40. Nd4 {[%clk
0:00:17.2]} 40... Re5 {[%clk 0:00:20.6]} 41. Nxc6 {[%clk 0:00:16.3]} 41... Re3+
{[%clk 0:00:21.3]} 42. Kf4 {[%clk 0:00:16.1]} 42... Re1 {[%clk 0:00:21.3]} 43.
Nxa5 {[%clk 0:00:15.9]} 43... Kd7 {[%clk 0:00:20.3]} 44. Nc4 {[%clk 0:00:14.7]}
44... Rf1+ {[%clk 0:00:19.6]} 45. Kg3 {[%clk 0:00:14.9]} 45... Ng5 {[%clk
0:00:20]} 46. Ne5+ {[%clk 0:00:13.9]} 46... Kc7 {[%clk 0:00:19.3]} 47. Rc4+
{[%clk 0:00:13.6]} 47... Kb6 {[%clk 0:00:19.8]} 48. Rf4 {[%clk 0:00:13.8]} 48...
Rg1+ {[%clk 0:00:19.7]} 49. Kh4 {[%clk 0:00:13.9]} 49... Nh7 {[%clk 0:00:17.8]}
50. Nc4+ {[%clk 0:00:14.8]} 50... Kc5 {[%clk 0:00:17.9]} 51. Rf5+ {[%clk
0:00:15.1]} 51... Kb4 {[%clk 0:00:18.3]} 52. g5 {[%clk 0:00:15.4]} 52... Rh1+
{[%clk 0:00:17.7]} 53. Kg4 {[%clk 0:00:15.4]} 53... Rg1+ {[%clk 0:00:18.3]} 54.
Kh5 {[%clk 0:00:15.4]} 54... Rh1+ {[%clk 0:00:17.8]} 55. Kg6 {[%clk 0:00:15.4]}
55... Rh4 {[%clk 0:00:17.1]} 56. Ne5 {[%clk 0:00:14.4]} 56... Ka3 {[%clk
0:00:17]} 57. Rf2 {[%clk 0:00:13.3]} 57... Rh3 {[%clk 0:00:16.8]} 58. Rg2 {[%clk
0:00:12.5]} 58... Nf8+ {[%clk 0:00:16.8]} 59. Kf7 {[%clk 0:00:10.8]} 59... Re3
{[%clk 0:00:16.3]} 60. Kxf8 {[%clk 0:00:10.6]} 60... Rxe5 {[%clk 0:00:16.7]} 61.
g6 {[%clk 0:00:11.5]} 1-0

[Event "Early-Titled-Tuesday-Blitz-May-14-2024"]
[Site "Chess.com"]
[Date "2024.05.14"]
[Round "2"]
[White "Fradi82"]
[Black "GeorgiosSouleidis"]
[Result "0-1"]
[WhiteElo "2197"]
[BlackElo "2689"]
[TimeControl "180+1"]
[EndTime "8:19:16 PDT"]
[Termination "GeorgiosSouleidis won by checkmate"]

1. e4 {[%clk 0:03:00.9]} 1... c5 {[%clk 0:02:49.3]} 2. Nf3 {[%clk 0:02:49.6]}
2... e6 {[%clk 0:02:48.7]} 3. d4 {[%clk 0:02:49.2]} 3... cxd4 {[%clk 0:02:49.6]}
4. Bg5 {[%clk 0:02:49]} 4... Be7 {[%clk 0:02:47.4]} 5. Bxe7 {[%clk 0:02:49.1]}
5... Nxe7 {[%clk 0:02:44.3]} 6. Qxd4 {[%clk 0:02:49.3]} 6... O-O {[%clk
0:02:44]} 7. Nc3 {[%clk 0:02:49.1]} 7... Nbc6 {[%clk 0:02:44.1]} 8. Qd6 {[%clk
0:02:49.6]} 8... Qb6 {[%clk 0:02:37.5]} 9. O-O-O {[%clk 0:02:39.3]} 9... Qxf2
{[%clk 0:02:32.2]} 10. Bd3 {[%clk 0:02:33]} 10... Qxg2 {[%clk 0:02:17.6]} 11.
Rdf1 {[%clk 0:02:31.6]} 11... Ng6 {[%clk 0:02:04.3]} 12. Rhg1 {[%clk 0:02:11.2]}
12... Qh3 {[%clk 0:02:04.4]} 13. Rg3 {[%clk 0:01:59.5]} 13... Qh6+ {[%clk
0:01:59.4]} 14. Kb1 {[%clk 0:01:56.1]} 14... Qf4 {[%clk 0:01:55.4]} 15. e5
{[%clk 0:01:42.5]} 15... Qb4 {[%clk 0:01:53.8]} 16. h4 {[%clk 0:01:23.3]} 16...
Qxd6 {[%clk 0:01:45]} 17. exd6 {[%clk 0:01:24.2]} 17... Nge5 {[%clk 0:01:36.6]}
18. Nxe5 {[%clk 0:01:11.9]} 18... Nxe5 {[%clk 0:01:37.5]} 19. Rfg1 {[%clk
0:00:49.3]} 19... g6 {[%clk 0:01:33.8]} 20. Be4 {[%clk 0:00:47.3]} 20... Rb8
{[%clk 0:01:21.2]} 21. h5 {[%clk 0:00:28.4]} 21... Kg7 {[%clk 0:01:18.1]} 22.
h6+ {[%clk 0:00:20]} 22... Kxh6 {[%clk 0:01:11.1]} 23. Rh3+ {[%clk 0:00:19.9]}
23... Kg7 {[%clk 0:01:11.3]} 24. Rgh1 {[%clk 0:00:20.2]} 24... h5 {[%clk
0:01:08.7]} 25. Ne2 {[%clk 0:00:20.2]} 25... b5 {[%clk 0:00:48.5]} 26. Nf4
{[%clk 0:00:19.3]} 26... Rh8 {[%clk 0:00:44.7]} 27. Rg1 {[%clk 0:00:15.7]} 27...
Ng4 {[%clk 0:00:32]} 28. Bf3 {[%clk 0:00:14.5]} 28... f5 {[%clk 0:00:31]} 29.
Nd3 {[%clk 0:00:13.5]} 29... Bb7 {[%clk 0:00:29.5]} 30. Bd1 {[%clk 0:00:13.2]}
30... Be4 {[%clk 0:00:28.8]} 31. b3 {[%clk 0:00:10.4]} 31... Bxd3 {[%clk
0:00:28.5]} 32. Rxd3 {[%clk 0:00:10.7]} 32... b4 {[%clk 0:00:26.5]} 33. Rd4
{[%clk 0:00:08.8]} 33... Kf6 {[%clk 0:00:26.2]} 34. Kb2 {[%clk 0:00:08.5]} 34...
a5 {[%clk 0:00:26.4]} 35. Be2 {[%clk 0:00:08.4]} 35... Rb6 {[%clk 0:00:26.6]}
36. Bc4 {[%clk 0:00:08.4]} 36... Ne5 {[%clk 0:00:23.1]} 37. Be2 {[%clk
0:00:08.2]} 37... g5 {[%clk 0:00:22.8]} 38. a3 {[%clk 0:00:07.7]} 38... g4
{[%clk 0:00:22.2]} 39. axb4 {[%clk 0:00:07.8]} 39... axb4 {[%clk 0:00:23.1]} 40.
c4 {[%clk 0:00:07.9]} 40... bxc3+ {[%clk 0:00:23]} 41. Kxc3 {[%clk 0:00:08.5]}
41... h4 {[%clk 0:00:22.9]} 42. b4 {[%clk 0:00:08.5]} 42... h3 {[%clk 0:00:23]}
43. Ra1 {[%clk 0:00:08]} 43... h2 {[%clk 0:00:22.9]} 44. Rdd1 {[%clk 0:00:07]}
44... Ng6 {[%clk 0:00:22.2]} 45. Rh1 {[%clk 0:00:06.9]} 45... Rxd6 {[%clk
0:00:21.4]} 46. b5 {[%clk 0:00:06.1]} 46... Nf4 {[%clk 0:00:21.9]} 47. Bc4
{[%clk 0:00:05.2]} 47... g3 {[%clk 0:00:19.2]} 48. Kb4 {[%clk 0:00:05.6]} 48...
g2 {[%clk 0:00:19.3]} 49. Kc5 {[%clk 0:00:05.9]} 49... gxh1=Q {[%clk 0:00:19.3]}
50. Rxh1 {[%clk 0:00:06.8]} 50... Rd2 {[%clk 0:00:19.2]} 51. b6 {[%clk 0:00:07]}
51... Rb2 {[%clk 0:00:19.3]} 52. Bb5 {[%clk 0:00:07.6]} 52... Rc8+ {[%clk
0:00:18.7]} 53. Kd6 {[%clk 0:00:07.7]} 53... Rxb5 {[%clk 0:00:18.6]} 54. b7
{[%clk 0:00:08.1]} 54... Rxb7 {[%clk 0:00:18.7]} 55. Rc1 {[%clk 0:00:08.1]}
55... Rc6+ {[%clk 0:00:18.4]} 56. Rxc6 {[%clk 0:00:06]} 56... dxc6 {[%clk
0:00:19.3]} 57. Kxc6 {[%clk 0:00:06.5]} 57... Rh7 {[%clk 0:00:19.9]} 58. Kd6
{[%clk 0:00:06.9]} 58... Ng6 {[%clk 0:00:20.8]} 59. Kc5 {[%clk 0:00:07.2]} 59...
e5 {[%clk 0:00:21.7]} 60. Kd5 {[%clk 0:00:07.6]} 60... Kg5 {[%clk 0:00:22.6]}
61. Kc5 {[%clk 0:00:08.5]} 61... Rh5 {[%clk 0:00:23.5]} 62. Kd5 {[%clk
0:00:09.2]} 62... f4 {[%clk 0:00:24.4]} 63. Kc5 {[%clk 0:00:09.9]} 63... e4
{[%clk 0:00:25.3]} 64. Kd5 {[%clk 0:00:10.7]} 64... e3 {[%clk 0:00:26.2]} 65.
Kc5 {[%clk 0:00:11.6]} 65... Kf5 {[%clk 0:00:26.9]} 66. Kd5 {[%clk 0:00:12.5]}
66... Nh8 {[%clk 0:00:26.2]} 67. Kc6 {[%clk 0:00:13.4]} 67... Ke6 {[%clk
0:00:26.3]} 68. Kb7 {[%clk 0:00:14.3]} 68... Rc5 {[%clk 0:00:26.5]} 69. Ka8
{[%clk 0:00:15.2]} 69... Rb5 {[%clk 0:00:25.7]} 70. Ka7 {[%clk 0:00:15.4]} 70...
Rb2 {[%clk 0:00:26.6]} 71. Ka6 {[%clk 0:00:16.3]} 71... Kd6 {[%clk 0:00:26.9]}
72. Ka5 {[%clk 0:00:16.6]} 72... Kc6 {[%clk 0:00:27.1]} 73. Ka4 {[%clk
0:00:17.5]} 73... Rb8 {[%clk 0:00:27.1]} 74. Ka3 {[%clk 0:00:18.3]} 74... Kc5
{[%clk 0:00:27.4]} 75. Ka2 {[%clk 0:00:19]} 75... Kc4 {[%clk 0:00:27.9]} 76. Ka1
{[%clk 0:00:19.7]} 76... Kc3 {[%clk 0:00:28.5]} 77. Ka2 {[%clk 0:00:20.4]} 77...
Rb7 {[%clk 0:00:27.9]} 78. Ka3 {[%clk 0:00:20.7]} 78... Ra7# {[%clk 0:00:22.7]}
0-1

[Event "Early-Titled-Tuesday-Blitz-May-14-2024"]
[Site "Chess.com"]
[Date "2024.05.14"]
[Round "2"]
[White "NikitaShnadrygin"]
[Black "urano56"]
[Result "1-0"]
[WhiteElo "2743"]
[BlackElo "2419"]
[TimeControl "180+1"]
[EndTime "8:19:17 PDT"]
[Termination "NikitaShnadrygin won by resignation"]

1. e4 {[%clk 0:03:00.9]} 1... c5 {[%clk 0:02:57.1]} 2. Nf3 {[%clk 0:03:00.4]}
2... d6 {[%clk 0:02:56.6]} 3. d4 {[%clk 0:03:00.7]} 3... cxd4 {[%clk 0:02:57.5]}
4. Nxd4 {[%clk 0:03:01.6]} 4... Nf6 {[%clk 0:02:58]} 5. Nc3 {[%clk 0:03:02.2]}
5... a6 {[%clk 0:02:58.6]} 6. Bg5 {[%clk 0:03:02.4]} 6... Nbd7 {[%clk
0:02:53.5]} 7. f4 {[%clk 0:03:02.2]} 7... Qc7 {[%clk 0:02:53.7]} 8. Qf3 {[%clk
0:03:01.2]} 8... g6 {[%clk 0:02:53.5]} 9. O-O-O {[%clk 0:02:58.2]} 9... Bg7
{[%clk 0:02:53.6]} 10. g4 {[%clk 0:02:56.1]} 10... O-O {[%clk 0:02:53.2]} 11.
Be2 {[%clk 0:02:11.9]} 11... b5 {[%clk 0:02:34.1]} 12. Bxf6 {[%clk 0:02:05.8]}
12... Nxf6 {[%clk 0:02:31.9]} 13. g5 {[%clk 0:02:05.9]} 13... Bg4 {[%clk
0:02:11.1]} 14. Qe3 {[%clk 0:01:23.6]} 14... Bxe2 {[%clk 0:02:09.2]} 15. gxf6
{[%clk 0:01:18.8]} 15... Bxd1 {[%clk 0:02:08]} 16. fxg7 {[%clk 0:01:19.2]} 16...
Kxg7 {[%clk 0:02:03.6]} 17. Rxd1 {[%clk 0:01:11.6]} 17... Qc5 {[%clk 0:02:00.8]}
18. f5 {[%clk 0:00:55.3]} 18... Rac8 {[%clk 0:01:54.9]} 19. Nd5 {[%clk
0:00:48.5]} 19... Rfe8 {[%clk 0:01:38.4]} 20. c3 {[%clk 0:00:35.5]} 20... b4
{[%clk 0:01:20.1]} 21. Kb1 {[%clk 0:00:17.2]} 21... bxc3 {[%clk 0:01:18.3]} 22.
Nxc3 {[%clk 0:00:17.5]} 22... Rb8 {[%clk 0:00:39.7]} 23. Qg3 {[%clk 0:00:09]}
23... Rb7 {[%clk 0:00:32.5]} 24. fxg6 {[%clk 0:00:08.7]} 24... hxg6 {[%clk
0:00:30.9]} 25. Nf5+ {[%clk 0:00:08]} 25... Kg8 {[%clk 0:00:28.9]} 26. Nh6+
{[%clk 0:00:06.6]} 26... Kg7 {[%clk 0:00:28.7]} 27. Nf5+ {[%clk 0:00:07.1]}
27... Kg8 {[%clk 0:00:28.7]} 28. Nd5 {[%clk 0:00:06.1]} 28... Reb8 {[%clk
0:00:16.2]} 29. b3 {[%clk 0:00:06.4]} 29... e6 {[%clk 0:00:13.6]} 30. Nf6+
{[%clk 0:00:05.7]} 30... Kf8 {[%clk 0:00:12.9]} 31. Nxd6 {[%clk 0:00:05.4]}
31... e5 {[%clk 0:00:08]} 32. Nxb7 {[%clk 0:00:04.4]} 32... Rxb7 {[%clk
0:00:08.9]} 33. Nd7+ {[%clk 0:00:04]} 33... Rxd7 {[%clk 0:00:06]} 34. Rxd7
{[%clk 0:00:04.9]} 34... Qb5 {[%clk 0:00:05.6]} 35. Rd1 {[%clk 0:00:04.2]} 35...
Qe2 {[%clk 0:00:04.9]} 36. Qd3 {[%clk 0:00:05.1]} 36... Qg2 {[%clk 0:00:04.5]}
37. Qd8+ {[%clk 0:00:06]} 37... Kg7 {[%clk 0:00:04.9]} 38. Qd5 {[%clk
0:00:05.4]} 38... Qxh2 {[%clk 0:00:04.5]} 39. Rd2 {[%clk 0:00:06]} 39... Qg1+
{[%clk 0:00:04.6]} 40. Kb2 {[%clk 0:00:06.3]} 40... Qg5 {[%clk 0:00:04.5]} 41.
Rf2 {[%clk 0:00:04.3]} 41... Qe7 {[%clk 0:00:03.1]} 42. a3 {[%clk 0:00:03.4]}
42... Qc7 {[%clk 0:00:02.8]} 43. Rc2 {[%clk 0:00:03.2]} 43... Qe7 {[%clk
0:00:03]} 44. Rd2 {[%clk 0:00:03.8]} 44... Qf6 {[%clk 0:00:03.4]} 45. b4 {[%clk
0:00:03.6]} 45... Qf4 {[%clk 0:00:03.7]} 46. Rc2 {[%clk 0:00:03.5]} 46... f5
{[%clk 0:00:03.9]} 47. exf5 {[%clk 0:00:03.4]} 47... gxf5 {[%clk 0:00:04.4]} 48.
Rc7+ {[%clk 0:00:03.9]} 48... Kf6 {[%clk 0:00:04.4]} 49. Rf7+ {[%clk 0:00:03]}
49... Kg5 {[%clk 0:00:04.8]} 50. Qe6 {[%clk 0:00:03.1]} 50... Qd2+ {[%clk
0:00:04.2]} 51. Kb3 {[%clk 0:00:02.9]} 51... Qd1+ {[%clk 0:00:04.8]} 52. Kc4
{[%clk 0:00:02.2]} 52... Qc2+ {[%clk 0:00:03.8]} 53. Kd5 {[%clk 0:00:02.8]}
53... Qd3+ {[%clk 0:00:02.3]} 54. Kc6 {[%clk 0:00:03.2]} 54... Qb5+ {[%clk
0:00:02.1]} 55. Kc7 {[%clk 0:00:03.3]} 55... Qc4+ {[%clk 0:00:01.9]} 56. Qxc4
{[%clk 0:00:03.5]} 1-0